Cogmind - Beta 17 @@@ ROGUE MODE // 2026.08.04 @ 17:53:18 Player: Afro Result: Destroyed by Shrapnel Trap Performance ------------- Evolutions (0) 0 Regions Visited (2) 400 Robots Destroyed (21) 105 Value Destroyed (369) 369 Prototype IDs (0) 0 Alien Tech Used (0) 0 Bonus (0) 0 TOTAL SCORE: 874 Bonus ------- None Cogmind --------- Core Integrity 0/250 Matter 234/300 Energy 92/100 System Corruption 3% Temperature Cool (0) Movement Core (50) Location -10/Subcaves Parts ------- > --- POWER (1) -------- (None) > --- PROPULSION (2) --- (None) > --- UTILITY (2) ------ Structural Scanner > --- WEAPON (2) ------- (None) > --- INVENTORY (5) ---- Ion Engine Aluminum Leg Aluminum Leg Light Assault Rifle Flamer Peak State ------------ > --- POWER ------------ Light Nuclear Core > --- PROPULSION ------- Aluminum Leg Aluminum Leg > --- UTILITY ---------- Small Storage Unit Structural Scanner > --- WEAPON ----------- Light Assault Rifle Light Assault Rifle > --- INVENTORY -------- Ion Engine Ion Engine Aluminum Leg Aluminum Leg Aluminum Leg Seismic Detector Mining Laser [Rating: 9] Favorites ----------- Power Ion Engine Engine Ion Engine Power Core Light Nuclear Core Propulsion Light Treads Treads Light Treads Leg Aluminum Leg Utility Small Storage Unit Device Structural Scanner Storage Small Storage Unit Weapon Light Assault Rifle Energy Gun EM Pulse Gun Ballistic Gun Light Assault Rifle Special Weapon Mining Laser Build | -11 -10 -10 ------- Run | Yrd Mat Sub Slots Evolved . | . . . Power . | . . . Propulsion . | . . . Utility . | . . . Weapon . | . . . Parts Attached 25 | 8 13 4 Power 5 | 1 3 1 Engine 4 | 1 2 1 Core 1 | . 1 . Reactor . | . . . Propulsion 6 | 2 3 1 Treads 2 | 2 . . Leg 4 | . 3 1 Wheel . | . . . Hover . | . . . Flight . | . . . Utility 4 | 2 2 . Device 3 | 1 2 . Storage 1 | 1 . . Processor . | . . . Hackware . | . . . Protection . | . . . Artifact . | . . . Weapon 10 | 3 5 2 Energy Gun 1 | 1 . . Energy Cannon . | . . . Ballistic Gun 6 | 2 4 . Ballistic Cannon . | . . . Launcher . | . . . Special Weapon 3 | . 1 2 Impact Weapon . | . . . Slashing Weapon . | . . . Piercing Weapon . | . . . Special Melee Weapon . | . . . Unidentified Prototypes . | . . . Parts Lost 8 | . 4 4 Power 1 | . . 1 Propulsion 2 | . 2 . Utility 2 | . 1 1 Weapon 3 | . 1 2 Highest Loss Streak 4 | . 2 4 To Critical Strikes . | . . . Average Backups 6 | 3 7 4 Power 2 | . 2 1 Propulsion 2 | 1 2 1 Utility . | . . . Weapon 1 | . 1 . Tool/Special . | . . . Unused Backups 6 | . 3 3 Power 4 | . 3 1 Propulsion 2 | . . 2 Utility . | . . . Weapon . | . . . Tool/Special . | . . . Average Slot Usage (%) 98 | . 99 94 Engine 11 | . 12 6 Core 2 | . 1 6 Treads 17 | . 20 . Leg 10 | . 7 26 Device 14 | . 13 19 Storage 12 | . 14 7 Ballistic Gun 25 | . 27 17 Special Weapon 1 | . . 8 Peak Build Rating 9 | 7 9 9 Average Rating 7 | 5 7 7 On Entrance 5 | . 7 9 Avg Prop Armor Cover (%) . | . . . Naked Turns . | . . . Heaviest Build 14 | 14 14 14 Greatest Support 40 | 40 40 20 Greatest Overweight (x) 4 | . 4 . Average Overweight (x) . | . . . Largest Inventory Capacity 8 | 8 8 8 Average Capacity 7 | 7 8 6 Most Carried 8 | 7 8 8 Average Carried 6 | 3 7 4 Final Capacity 8 | 8 8 5 Final Carried 7 | 6 7 5 Class Distribution -------------------- 76% | Mutant 23% | Scavenger-Mutant Dominant Class ---------------- Mutant | -10/Materials Mutant | -10/Subcaves Resources | -11 -10 -10 ----------- Run | Yrd Mat Sub Matter Collected 704 | 296 355 53 Remotely . | . . . Salvage Created 531 | 110 421 . Parts 51 | 9 42 . Haulers Intercepted . | . . . Recyclers Shooed 2 | . 2 . Parts Field Recycled . | . . . Retrieved Matter . | . . . Parts Self-Destructed . | . . . Prevented . | . . . Parts Restored . | . . . Kills | -11 -10 -10 ------- Run | Yrd Mat Sub Combat Hostiles Destroyed 13 | . 12 1 Guns 13 | . 12 1 Classes Destroyed 7 | 2 4 1 Worker 2 | . 2 . Builder 2 | . 2 . Tunneler 3 | 2 1 . Recycler 1 | 1 . . Swarmer 6 | . 6 . Grunt 6 | . 6 . Subdweller 1 | . . 1 Best Kill Streak 4 | 3 4 1 Combat Bots Only 4 | . 4 1 Max Kills in Single Turn 1 | 1 1 1 Gunslinging . | . . . Exploded . | . . . Melee . | . . . Uniques/NPCs Destroyed . | . . . Combat | -11 -10 -10 -------- Run | Yrd Mat Sub Hostile Shots Fired 103 | . 85 18 Missed 20 | . 17 3 Hits 83 | . 68 15 Projectile 83 | . 68 15 Critical Strikes 3 | . 2 1 Damage Taken 1153 | . 731 422 Core 257 | . 96 161 Absorbed by Shields . | . . . Core Remaining (%) 100 | 100 . . Volleys Fired 97 | 4 80 13 Largest 2 | 2 2 2 Hottest 120 | 40 100 120 Shots Fired 174 | 8 147 19 Gun 157 | 8 139 10 Cannon . | . . . Launcher . | . . . Special 17 | . 8 9 Kinetic 157 | 8 139 10 Thermal 17 | . 8 9 Explosive . | . . . Electromagnetic . | . . . Robot Hit Streak 22 | 4 15 22 Robot Miss Streak 4 | 1 4 2 Penetration Max . | . . . Secondary Targets 2 | . 2 . Max Gunslinging Chain 1 | . 1 . Shots Hit Robots 109 | 4 95 10 Core Hits 40 | 4 33 3 Critical Kills . | . . . Critical Parts Destroyed 1 | . 1 . Critical Strikes 1 | . 1 . Destroy 1 | . 1 . Melee Attacks . | . . . Impact . | . . . Slashing . | . . . Piercing . | . . . Sneak Attacks . | . . . Combat Hostiles . | . . . Follow-up Attacks . | . . . Damage Inflicted 1059 | 40 892 127 Guns 956 | 40 861 55 Cannons . | . . . Explosions . | . . . Melee . | . . . Ramming 7 | . 7 . Kinetic 956 | 40 861 55 Thermal 96 | . 24 72 Explosive . | . . . Electromagnetic . | . . . Impact . | . . . Slashing . | . . . Piercing . | . . . Highest Corruption 3 | . 3 3 Average Corruption 2 | . 2 3 Corruption Purged . | . . . Corruption Blocked . | . . . Effects 24 | . 19 5 Message Errors 9 | . 7 2 Matter Fused 6 | . 5 1 Heat Flow Errors 2 | . 1 1 Energy Discharges 2 | . 2 . Data Loss (minor) 4 | . 3 1 Data Loss (major) 1 | . 1 . Overload Shots . | . . . Overflow Damage . | . . . Projectiles . | . . . Explosions . | . . . Melee . | . . . Knockbacks . | . . . Impact . | . . . Kinetic . | . . . Secondary . | . . . Self-Inflicted Damage . | . . . Shots . | . . . Rammed 2 | . 2 . Targets Rammed 4 | . 4 . Kicked 1 | . 1 . Crushed 1 | . 1 . Highest Temperature 261 | . 149 261 Average Temperature 40 | . 25 98 Received Heat Transfer 752 | . 345 407 Siege Activations . | . . . Martial Activations . | . . . Shielding Activations . | . . . Robots Disrupted . | . . . Combat Hostiles . | . . . Robots Corrupted . | . . . Combat Hostiles . | . . . Parts Fried . | . . . Impact Corruptions . | . . . Robots Melted . | . . . Combat Hostiles . | . . . Parts Melted . | . . . Heat Transferred 200 | . 50 150 Parts Sabotaged . | . . . Parts Stolen . | . . . Parts Stripped . | . . . Power Chain Reactions . | . . . Alert | -11 -10 -10 ------- Run | Yrd Mat Sub Maximum Alert Level . | . . . Low Security (%) 100 | 100 100 . Level 1 . | . . . Level 2 . | . . . Level 3 . | . . . Level 4 . | . . . Level 5 . | . . . High Security . | . . . Max Security . | . . . Peak Influence 75 | 10 75 . Initial . | . . . Average 19 | 1 21 . Influence Increases 375 | 15 360 . Destroy 0b10 Robot/C 240 | . 240 . Destroy 0b10 Robot/NC 40 | 15 25 . Destroy Leader 50 | . 50 . Successful Hack 38 | . 38 . Destroy Structure 7 | . 7 . Influence Decreases 375 | 15 321 39 Entered New Map 19 | . . 19 Time Decay 316 | 15 281 20 Lost Part 30 | . 30 . Lost Ally 10 | . 10 . Squads Dispatched 1 | . 1 . Investigation 1 | . 1 . Extermination . | . . . Reinforcement . | . . . Assault . | . . . Garrison . | . . . Intercept . | . . . Searches Triggered . | . . . Construction Impeded . | . . . Haulers Reinforced . | . . . Active Scanning Responses . | . . . Cargo Convoy Interrupts . | . . . Stealth | -11 -10 -10 --------- Run | Yrd Mat Sub Distress Signals . | . . . Communications Jammed . | . . . Distress Signals . | . . . Times Spotted 25 | . 23 2 Peak Tracking Total 3 | . 3 1 Tactical Retreats . | . . . Traps | -11 -10 -10 ------- Run | Yrd Mat Sub Traps Triggered 7 | . 5 2 Indirectly . | . . . Trap Hack Attempts . | . . . Triggered . | . . . Disarmed . | . . . Reprogrammed . | . . . Reused . | . . . Traps Extracted . | . . . Installed . | . . . Triggered . | . . . Machines | -11 -10 -10 ---------- Run | Yrd Mat Sub Machines Disabled . | . . . Max in Single Turn . | . . . Machines Repaired . | . . . Machines Dismantled . | . . . Machines Sabotaged . | . . . Overloaded Fab Kills . | . . . Hacking | -11 -10 -10 --------- Run | Yrd Mat Sub Machines Accessed 9 | . 9 . Terminals 8 | . 8 . Fabricators . | . . . Repair Stations . | . . . Recycling Units 1 | . 1 . Scanalyzers . | . . . Garrison Access . | . . . Total Hacks 36 | . 36 . Successful 17 | . 17 . Failed 18 | . 18 . Catastrophic . | . . . Database Lockouts 1 | . 1 . Manual 38 | . 38 . Terminals 35 | . 35 . Fabricators . | . . . Repair Stations . | . . . Recycling Units 1 | . 1 . Scanalyzers . | . . . Garrison Access . | . . . Terminal Hacks 1 | . 1 . Robot Analysis 1 | . 1 . Fabricator Hacks . | . . . Repair Station Hacks . | . . . Recycling Unit Hacks . | . . . Scanalyzer . | . . . Garrison Access Hacks . | . . . Unauthorized Hacks 15 | . 15 . Terminals 15 | . 15 . Track 2 | . 2 . Assimilate 4 | . 4 . Botnet 8 | . 8 . Operators 1 | . 1 . Fabricators . | . . . Repair Stations . | . . . Recycling Units . | . . . Scanalyzers . | . . . Garrison Access . | . . . Data Cores Recovered . | . . . Used . | . . . Hacking Detections 7 | . 7 . Full Trace Events 1 | . 1 . Feedback Events . | . . . Feedback Blocked . | . . . Robot Schematics Acquired . | . . . Robots Built . | . . . Authchips . | . . . Time . | . . . Total Robot Build Rating . | . . . Part Schematics Acquired . | . . . Parts Built . | . . . Authchips . | . . . Time . | . . . Total Part Build Rating . | . . . Part Studies Acquired . | . . . Parts Repaired . | . . . Time . | . . . Parts Recycled . | . . . Recycled Matter . | . . . Retrieved Matter . | . . . Retrieved Components . | . . . Parts Scanalyzed . | . . . Part Schematics Acquired . | . . . Parts Damaged . | . . . Bothacking | -11 -10 -10 ------------ Run | Yrd Mat Sub Used RIF Installer . | . . . Robots Hacked . | . . . Non-combat . | . . . Combat . | . . . Robot Hacks Applied . | . . . Relay Couplers Released . | . . . Fabnet Peak Effective % . | . . . Robots Rewired . | . . . Allies Hacked . | . . . Hacks Repelled . | . . . Allies | -11 -10 -10 -------- Run | Yrd Mat Sub Total Allies 1 | . 1 . Largest Group 1 | . 1 . Highest-Rated Group 10 | . 10 . Highest-Rated Ally 10 | . 10 . Total Orders . | . . . Ally Attacks . | . . . Total Damage . | . . . Kills . | . . . Allies Corrupted . | . . . Allies Melted . | . . . Intel | -11 -10 -10 ------- Run | Yrd Mat Sub Active Infowar (turns) 1625 | 20 1339 266 Structural 1290 | . 1025 265 Seismic 445 | 20 314 111 Robot Analysis Total 1 | . 1 . Derelict Logs Recovered 1 | . . 1 Drone Launches . | . . . Drone Recoveries . | . . . Exploration | -11 -10 -10 ------------- Run | Yrd Mat Sub Turns Passed 1776 | 128 1382 266 Spaces Moved 913 | 64 671 178 Core 33 | 4 3 26 Treads 530 | 60 470 . Legs 350 | . 198 152 Wheels . | . . . Hover . | . . . Flight . | . . . Fastest Speed 50 | 50 120 50 Average Speed 141 | 153 148 109 Slowest Speed 250 | 160 250 120 Overloaded Moves . | . . . Propulsion Burnouts . | . . . Robots Hopped . | . . . Potential Cave-ins . | . . . Cave-ins Triggered . | . . . Exploration Rate (%) 38 | 4 99 12 Regions Visited 2 Branch Regions 1 Pre-discovered Areas 1 | . . 1 Known Exits Taken . | . . . Unknown Exits Taken 2 | 1 1 . Scrap Searched 1 | . . 1 Spaces Dug 5 | . 5 . Terrain Destroyed 6 | . 6 . Melee . | . . . Projectile 6 | . 6 . AOE . | . . . Terrain Rammed . | . . . Walls Destroyed . | . . . Machines Disabled . | . . . Actions | -11 -10 -10 --------- Run | Yrd Mat Sub Total 1216 | 84 917 215 Wait 125 | . 125 . Move 911 | 63 670 178 Hop . | . . . Pick Up 21 | 8 7 6 Fast Attach 13 | 6 7 . Attach 8 | 1 3 4 Detach 3 | . 1 2 Swap 15 | 1 9 5 Drop 19 | 1 11 7 Fire 97 | 4 80 13 Melee . | . . . Ram . | . . . Kick 1 | . 1 . Crush 3 | . 3 . Escape Stasis . | . . . Rewire . | . . . Trap . | . . . Miscellaneous . | . . . Route ------- -11/Scrapyard -10/Materials (discovered 6 exits: [*Mat x3] / [*Min x2] / [*Sub]) -10/Subcaves History --------- Turn | Location | Event 6 | -11/Scrapyard | Discovered new exit (range 15) 129 | -11/Scrapyard | Entered Materials 129 | -10/Materials | Discovered new exit (range 8) 317 | -10/Materials | Build established: Mutant 584 | -10/Materials | Discovered new exit (range 5) 900 | -10/Materials | Discovered new exit (range 16) 1114 | -10/Materials | Discovered new exit (range 16) 1241 | -10/Materials | Central database locked down 1427 | -10/Materials | Discovered new exit (range 14) 1488 | -10/Materials | Discovered new exit (range 10) 1511 | -10/Materials | Entered Subcaves 1512 | -10/Subcaves | Approached by a straggling Scientist 1528 | -10/Subcaves | Learned Materials trap positions 1603 | -10/Subcaves | Disturbed a concealed Subdweller 1632 | -10/Subcaves | Core integrity fell below 50% 1666 | -10/Subcaves | Lost 4 parts (1p1u2w) 1774 | -10/Subcaves | Learned location of Zion (-7) 1774 | -10/Subcaves | Met a Zionite searching for "candidates" 1776 | -10/Subcaves | Core integrity fell below 20% 1777 | -10/Subcaves | Destroyed by Shrapnel Trap Last Messages --------------- 01760_ Dropped Aluminum Leg. 01761_ Subatomizers dissect the Aluminum Leg. 01762_ Dropped Sml. Storage Unit. 01762_ Dropped Aluminum Leg. 01763_ Acquired Flamer. QR-8XU(c): "I think it's somewhere south of here" 01773_ WQ-ARM(z): "She is not going to be happy we haven't found any suitable candidates yet." 01774_ WQ-ARM(z): "Hey you! It's really dangerous down here, I feel that you could die at any moment. For your health and safety might I suggest a trip to Zion?" World map updated: -7/Zion. 01775_ Triggered Piercing Trap. 01775_ Spikes shoot up from the floor. 01775_ Critical hit (Impale). 01777_ Triggered Shrapnel Trap. 01777_ An expanding cloud of shrapnel blasts out in all directions. Map ----- +----------------------------------------------------+ | # # ###???????? #### ??????????????????????? | | # ## #### ?????? ## ??????????????????????? | | ##### #### ???? ?????????????????????? | | #### ####??## ??????????????????????? | | ?## ###### ???????????????????????? | | ?## ##### ????????????????????????? | | ?### #### ??????????????????????????? | | ?##### ### ###### ?????????????????????? | | ??##### ####### ##?????????????????? | | ???? ## ## ##?????????????????? | | ?????## & ##?????????????????? | | ?????### =&! ?????????????????? | | ?????#####=*=## ?????????????????? | | ???? ########## #### ??????????????????? | | ## ? ## #### ### ### ???????? ##???????????? | | ## ## ### ###?????????? ##???????????? | | # ## ### ###?????????? ???????????? | | # ## ##??????## ???????????? | | ## ## ##??? ## ## ??????????? | | #### ### ######### ##??????????? | | ##### ### ###### ##??????????? | | ??### ## ##???????????????? | | ??### ##???????????????? | | ?### ### #### # ## ##???????????????? | | ?## #### ####### ### ## ##???????????????? | | ?# ???########?## ### @ ###???????????????????? | | ????????####????######## # ???????????????????? | | ????????????????########## ????????????????????? | | ??????????????????????###### ???????????????????? | | ?????????????????????????#### # ????????????????? | | ???????????????????????????# ##????????????????? | | ????????????????????????????? ###????????????????? | | ????????????????????????????? ##????????????????? | | ?????????????????????????????????????????????????? | | ?????????????????????????????????????????????????? | | ?????????????????????????????????????????????????? | | ?????????????????????????????????????????????????? | | ?????????????????????????????????????????????????? | | ?????????????????????????????????????????????????? | | ?????????????????????????????????????????????????? | | ?????????????????????????????????????????????????? | | ?????????????????????????????????????????????????? | | ?????????????????????????????????????????????????? | | ?????????????????????????????????????????????????? | | ?????????????????????????????????????????????????? | | ?????????????????????????????????????????????????? | | ?????????????????????????????????????????????????? | | ?????????????????????????????????????????????????? | | ?????????????????????????????????????????????????? | | ?????????????????????????????????????????????????? | +----------------------------------------------------+ Best States ------------- Heat Dissipation 25 Energy Generation 14 Energy Capacity 250 Matter Stores 300 Matter Capacity 300 Sight Range 16 Terrain Scan Density 10 Evasion (%) 55 Recoil Reduction 2 Item Schematics ----------------- None Robot Schematics ------------------ None Fabricated ------------ Nothing Repaired ---------- Nothing Studied --------- None Alien Tech Used ----------------- None Achievements -------------- None Challenges ------------ None Game ------ Seed MinesnifferCarbideConstruct Manual? 0 Play Time 00:18:02 Cumulative 83.6 hours Start 2026.08.04 @ 17:33:51 End 2026.08.04 @ 17:53:18 Sessions 2 Manual Loads 0 Difficulty Rogue Special Mode None Game No. 67 Rogue 67 Adventurer 0 Explorer 0 Win Type - Total 1 Types 1/0/0/0/0/0/0/0/0/0 Lore% 25 Gallery% 34 Achievement% 28 Wizard Run 0 Options --------- Layout 1 ASCII 0 Keyboard 0 Movement Mouse Keybinds 0 Fullscreen 2 Font 24/Smallcaps Map View 50x35 Zoom Use 0% Tactical HUD 1 Map Filters NONE Filters NONE Steam 1 RUN: 64f1e6f8-2159-4f32-a80e-7226d8946124